Cogmind - Beta 9.3 @@@ ROGUE MODE // 2019.12.18 @ 21:47:28 // Winter2019/RPGLIKE Player: Cassie Rose Result: Core destroyed Performance ------------- Evolutions (1) 500 Regions Visited (2) 400 Robots Destroyed (68) 340 Value Destroyed (1334) 1334 Prototype IDs (1) 20 Alien Tech Used (0) 0 Bonus (19) 19 TOTAL SCORE: 2613 Bonus ------- High Alert Combat Kills 19 Cogmind --------- Core Integrity 0/650 Matter 272/300 Energy 220/220 System Corruption 7% Temperature Cool (546) Movement Treading (160) Location -9/Materials Parts ------- > --- POWER (2) -------- Light Nuclear Core Light Nuclear Core > --- PROPULSION (2) --- Light Treads Improved Treads > --- UTILITY (4) ------ Improved Terrain Scanner Seismic Analyzer Hacking Suite System Shield > --- WEAPON (2) ------- EM Pulse Gun Light Cannon > --- INVENTORY (2) ---- Katana Peak State ------------ > --- POWER ------------ Light Nuclear Core Light Nuclear Core > --- PROPULSION ------- Light Treads Improved Treads > --- UTILITY ---------- Improved Terrain Scanner Seismic Analyzer Hacking Suite System Shield > --- WEAPON ----------- EM Pulse Gun Light Cannon > --- INVENTORY -------- Katana [Rating: 20] Favorites ----------- Power Light Nuclear Core Engine Ion Engine Power Core Light Nuclear Core Propulsion Light Treads Treads Light Treads Utility Improved Terrain Scanner Device Improved Terrain Scanner Processor Seismic Analyzer Hackware System Shield Weapon EM Pulse Gun Energy Gun EM Pulse Gun Ballistic Gun Light Assault Rifle Ballistic Cannon Light Cannon Build | -11 -10 -9 ------- Run | Scr Mat Mat Slots Evolved 6 | 4 . 2 Power 1 | 1 . . Propulsion 1 | 1 . . Utility 3 | 1 . 2 Weapon 1 | 1 . . Parts Attached 24 | 8 4 12 Power 8 | 2 1 5 Engine 3 | 2 . 1 Core 5 | . 1 4 Reactor . | . . . Propulsion 4 | 2 . 2 Treads 4 | 2 . 2 Leg . | . . . Wheel . | . . . Hover . | . . . Flight . | . . . Utility 6 | 2 1 3 Device 3 | 1 1 1 Storage . | . . . Processor 1 | 1 . . Hackware 2 | . . 2 Protection . | . . . Artifact . | . . . Weapon 6 | 2 2 2 Energy Gun 3 | 1 1 1 Energy Cannon . | . . . Ballistic Gun 1 | 1 . . Ballistic Cannon 2 | . 1 1 Launcher . | . . . Special Weapon . | . . . Impact Weapon . | . . . Slashing Weapon . | . . . Piercing Weapon . | . . . Special Melee Weapon . | . . . Unidentified Prototypes 1 | . . 1 Parts Lost 1 | . . 1 Power . | . . . Propulsion . | . . . Utility . | . . . Weapon 1 | . . 1 Highest Loss Streak 1 | . . 1 Average Slot Usage (%) 99 | . 100 99 Engine 9 | . 15 2 Core 15 | . 8 21 Treads 24 | . 25 24 Device 11 | . 12 11 Processor 11 | . 12 11 Hackware 1 | . . 2 Energy Gun 11 | . 12 11 Ballistic Gun 3 | . 7 . Ballistic Cannon 7 | . 4 11 Naked Turns . | . . . Heaviest Build 16 | 12 16 16 Greatest Support 43 | 40 40 43 Greatest Overweight (x) 3 | 3 . . Average Overweight (x) . | . . . Largest Inventory Capacity 2 | 2 2 2 Average Capacity 2 | 2 2 2 Most Carried 2 | 2 2 2 Average Carried 1 | . . 1 Final Capacity 2 | 2 2 2 Final Carried 1 | . 1 1 Class Distribution -------------------- 55% | Mutant 22% | Scavenger-Skirmisher 21% | Skirmisher Dominant Class ---------------- Mutant | -10/Materials Scavenger-Skirmisher | -9/Materials Resources | -11 -10 -9 ----------- Run | Scr Mat Mat Matter Collected 951 | 296 184 471 Remotely . | . . . Salvage Created 2328 | 201 931 1196 Parts 148 | 13 51 84 Haulers Intercepted 5 | . 2 3 Recyclers Shooed 1 | . . 1 Parts Field Recycled . | . . . Retrieved Matter . | . . . Parts Self-Destructed . | . . . Prevented . | . . . Kills | -11 -10 -9 ------- Run | Scr Mat Mat Combat Hostiles Destroyed 37 | . 12 25 Guns 23 | . 10 13 Cannons 12 | . 2 10 AOE 2 | . . 2 Classes Destroyed 11 | 3 6 2 Worker 3 | 1 2 . Builder 3 | . 1 2 Tunneler 6 | 4 2 . Hauler 5 | . 2 3 Recycler 6 | 1 2 3 Operator 2 | . 1 1 Watcher 6 | . 2 4 Swarmer 12 | . 3 9 Grunt 18 | . 9 9 Duelist 2 | . . 2 Sentry 5 | . . 5 Best Kill Streak 7 | 2 4 7 Combat Bots Only 4 | . 3 4 Max Kills in Single Turn 2 | 1 1 2 Gunslinging . | . . . Exploded 1 | . . 1 Melee . | . . . Uniques/NPCs Destroyed . | . . . Combat | -11 -10 -9 -------- Run | Scr Mat Mat Damage Taken 1969 | 30 508 1431 Core 1611 | 24 401 1186 Absorbed by Shields . | . . . Redirected to Core 1203 | 24 341 838 Core Remaining (%) 76 | 96 57 . Volleys Fired 204 | 16 86 102 Largest 2 | 2 2 2 Hottest 80 | 60 75 80 Shots Fired 382 | 32 166 184 Gun 273 | 32 145 96 Cannon 109 | . 21 88 Launcher . | . . . Special . | . . . Kinetic 185 | 16 81 88 Thermal . | . . . Explosive . | . . . Electromagnetic 197 | 16 85 96 Robot Hit Streak 23 | 14 9 23 Robot Miss Streak 6 | 3 6 3 Penetration Max . | . . . Secondary Targets 2 | . 2 . Max Gunslinging Chain 1 | . 1 . Shots Hit Robots 236 | 23 88 125 Core Hits 98 | 10 36 52 Critical Hits 4 | . 1 3 Critical Kills 3 | . 1 2 Critical Parts Destroyed 1 | . . 1 Melee Attacks . | . . . Impact . | . . . Slashing . | . . . Piercing . | . . . Sneak Attacks . | . . . Combat Hostiles . | . . . Follow-up Attacks . | . . . Damage Inflicted 3765 | 309 1246 2210 Guns 2204 | 270 962 972 Cannons 1083 | . 239 844 Explosions 475 | 39 45 391 Melee . | . . . Ramming 3 | . . 3 Kinetic 1388 | 91 453 844 Thermal 475 | 39 45 391 Explosive . | . . . Electromagnetic 1899 | 179 748 972 Impact . | . . . Slashing . | . . . Piercing . | . . . Highest Corruption 7 | . 2 7 Average Corruption 3 | . 1 4 Corruption Purged . | . . . Effects 29 | . 9 20 Message Errors 7 | . 4 3 Matter Fused 5 | . . 5 Heat Flow Errors 3 | . 1 2 Energy Discharges 3 | . 1 2 Parts Rejected 1 | . . 1 Data Loss (minor) 2 | . . 2 Targeting Errors 8 | . 3 5 Overload Shots . | . . . Overflow Damage 66 | 9 36 21 Projectiles 36 | . 36 . Explosions 30 | 9 . 21 Melee . | . . . Knockbacks 8 | . 5 3 Impact . | . . . Kinetic 8 | . 5 3 Secondary . | . . . Self-Inflicted Damage 77 | 31 . 46 Shots 2 | 1 . 1 Rammed 1 | . . 1 Targets Rammed 1 | . . 1 Kicked . | . . . Crushed . | . . . Highest Temperature 546 | 105 303 546 Average Temperature 131 | 43 84 171 Received Heat Transfer 627 | . 267 360 Effects 29 | . 3 26 Shutdowns 4 | . . 4 Energy Bleed 8 | . . 8 Interference 13 | . 3 10 Matter Decay 1 | . . 1 Damage (minor) 2 | . . 2 Damage (core) 1 | . . 1 Siege Activations . | . . . Robots Corrupted . | . . . Combat Hostiles . | . . . Parts Fried 7 | 2 3 2 Impact Corruptions . | . . . Robots Melted . | . . . Combat Hostiles . | . . . Parts Melted . | . . . Heat Transferred 600 | 50 . 550 Parts Sabotaged . | . . . Parts Stolen . | . . . Parts Stripped . | . . . Power Chain Reactions 9 | 1 1 7 Missiles Intercepted . | . . . Alert | -11 -10 -9 ------- Run | Scr Mat Mat Peak Influence 427 | 30 201 427 Average Influence 170 | 12 89 269 Maximum Alert Level 2 | . 1 2 Low Security (%) 67 | 100 98 31 Level 1 23 | . 1 48 Level 2 9 | . . 19 Level 3 . | . . . Level 4 . | . . . Level 5 . | . . . High Security . | . . . Max Security . | . . . Squads Dispatched 4 | . 3 1 Investigation 2 | . 2 . Extermination . | . . . Reinforcement 2 | . 1 1 Assault . | . . . Garrison . | . . . Intercept . | . . . Construction Impeded . | . . . Haulers Reinforced . | . . . Stealth | -11 -10 -9 --------- Run | Scr Mat Mat Distress Signals 6 | . 1 5 Communications Jammed . | . . . Distress Signals . | . . . Times Spotted 64 | . 32 32 Peak Tracking Total 4 | . 3 4 Tactical Retreats 6 | . 2 4 Traps | -11 -10 -9 ------- Run | Scr Mat Mat Traps Triggered 7 | . 2 5 Indirectly . | . . . Trap Hack Attempts . | . . . Triggered . | . . . Disarmed . | . . . Reprogrammed . | . . . Reused . | . . . Traps Extracted . | . . . Installed . | . . . Triggered 1 | . 1 . Machines | -11 -10 -9 ---------- Run | Scr Mat Mat Machines Disabled 1 | . . 1 Max in Single Turn 1 | . . 1 Machines Sabotaged . | . . . Garrisons Compromised . | . . . Overloaded Fab Kills . | . . . Fab Network Shutdowns . | . . . Hacking | -11 -10 -9 --------- Run | Scr Mat Mat Machines Accessed 1 | . 1 . Terminals 1 | . 1 . Fabricators . | . . . Repair Stations . | . . . Recycling Units . | . . . Scanalyzers . | . . . Garrison Access . | . . . Total Hacks 6 | . 6 . Successful 3 | . 3 . Failed 3 | . 3 . Catastrophic . | . . . Database Lockouts . | . . . Manual 2 | . 2 . Terminals 6 | . 6 . Fabricators . | . . . Repair Stations . | . . . Recycling Units . | . . . Scanalyzers . | . . . Garrison Access . | . . . Terminal Hacks 3 | . 3 . Record 1 | . 1 . Security Status 1 | . 1 . Zone Layout 1 | . 1 . Fabricator Hacks . | . . . Repair Station Hacks . | . . . Recycling Unit Hacks . | . . . Scanalyzer . | . . . Garrison Access Hacks . | . . . Unauthorized Hacks . | . . . Terminals . | . . . Fabricators . | . . . Repair Stations . | . . . Recycling Units . | . . . Scanalyzers . | . . . Garrison Access . | . . . Data Cores Recovered . | . . . Used . | . . . Hacking Detections 1 | . 1 . Full Trace Events 1 | . 1 . Feedback Events . | . . . Feedback Blocked . | . . . Robot Schematics Acquired . | . . . Robots Built . | . . . Matter . | . . . Time . | . . . Total Robot Build Rating . | . . . Part Schematics Acquired . | . . . Parts Built . | . . . Matter . | . . . Time . | . . . Total Part Build Rating . | . . . Parts Repaired . | . . . Time . | . . . Parts Recycled . | . . . Recycled Matter . | . . . Retrieved Matter . | . . . Retrieved Components . | . . . Parts Scanalyzed . | . . . Part Schematics Acquired . | . . . Parts Damaged . | . . . Bothacking | -11 -10 -9 ------------ Run | Scr Mat Mat Used RIF Installer . | . . . Robots Hacked . | . . . Non-combat . | . . . Combat . | . . . Robot Hacks Applied . | . . . Relay Couplers Released . | . . . Robots Rewired . | . . . Allies Hacked . | . . . Hacks Repelled . | . . . Allies | -11 -10 -9 -------- Run | Scr Mat Mat Total Allies . | . . . Largest Group . | . . . Highest-Rated Group . | . . . Highest-Rated Ally . | . . . Total Orders . | . . . Ally Attacks . | . . . Total Damage . | . . . Kills . | . . . Allies Corrupted . | . . . Allies Melted . | . . . Intel | -11 -10 -9 ------- Run | Scr Mat Mat Robot Analysis Total . | . . . Derelict Logs Recovered . | . . . Drone Launches . | . . . Drone Recoveries . | . . . Exploration | -11 -10 -9 ------------- Run | Scr Mat Mat Turns Passed 2636 | 130 1270 1236 Spaces Moved 1201 | 51 607 543 Core 15 | 15 . . Treads 1186 | 36 607 543 Legs . | . . . Wheels . | . . . Hover . | . . . Flight . | . . . Fastest Speed 50 | 50 160 160 Average Speed 159 | 138 160 160 Slowest Speed 200 | 200 160 160 Overloaded Moves . | . . . Propulsion Burnouts . | . . . Robots Hopped . | . . . Cave-ins Triggered . | . . . Exploration Rate (%) 53 | 4 98 58 Regions Visited 2 Branch Regions . Pre-discovered Areas . | . . . Known Exits Taken . | . . . Unknown Exits Taken 2 | 1 1 . Scrap Searched . | . . . Spaces Dug . | . . . Terrain Destroyed 32 | 5 3 24 Melee . | . . . Projectile . | . . . AOE 32 | 5 3 24 Actions | -11 -10 -9 --------- Run | Scr Mat Mat Total 1561 | 82 752 727 Wait 60 | . 38 22 Move 1199 | 50 606 543 Hop . | . . . Pick Up 19 | 8 6 5 Fast Attach 4 | . . 4 Attach 12 | 8 . 4 Detach . | . . . Swap 8 | . 4 4 Drop 11 | . 5 6 Fire 204 | 16 86 102 Melee . | . . . Ram . | . . . Kick . | . . . Crush 1 | . . 1 Escape Stasis . | . . . Rewire . | . . . Trap . | . . . Miscellaneous 43 | . 7 36 Route ------- -11/Scrapyard -10/Materials (discovered 4 exits: [*Mat x3] / [*Min]) -9/Materials (discovered 5 exits: [*Mat x2] / [*Min] / [*Sto x2]) History --------- Turn | Location | Event 1 | -11/Scrapyard | Upgraded with Power slot (x1) 1 | -11/Scrapyard | Upgraded with Propulsion slot (x1) 1 | -11/Scrapyard | Upgraded with Utility slot (x1) 1 | -11/Scrapyard | Upgraded with Weapon slot (x1) 5 | -11/Scrapyard | Discovered new exit (range 15) 131 | -11/Scrapyard | Entered Materials 309 | -10/Materials | Build established: Mutant 358 | -10/Materials | Discovered new exit (range 17) 559 | -10/Materials | Discovered new exit (range 16) 588 | -10/Materials | Core integrity fell below 50% 848 | -10/Materials | Discovered new exit (range 7) 962 | -10/Materials | Discovered new exit (range 17) 1376 | -10/Materials | Reached level 2 1401 | -10/Materials | Entered another Materials area 1403 | -9/Materials | Reached level 3 1526 | -9/Materials | Core integrity fell below 50% 1594 | -9/Materials | Discovered new exit (range 9) 1598 | -9/Materials | Discovered new exit (range 18) 1848 | -9/Materials | Reached level 4 1887 | -9/Materials | Discovered new exit (range 14) 2145 | -9/Materials | Discovered new exit (range 14) 2153 | -9/Materials | Core integrity fell below 20% 2396 | -9/Materials | Reached level 5 2466 | -9/Materials | Upgraded with Utility slot (x2) 2563 | -9/Materials | Discovered new exit (range 17) 2638 | -9/Materials | Core destroyed Last Messages --------------- 02619_ S-10 Pest unfolds itself. 02620_ Overheating: Energy bleed (-41). 02620_ A-02 Transporter destroyed. 02629_ K-01 Serf collects debris. 02630_ K-01 Serf cleans the Repair Station. 02632_ S-10 Pest destroyed. 02633_ K-01 Serf cleans the Repair Station. 02635_ Overheating: Lgt. Nuclear Core damaged (-18). 02635_ EHQ|W|F 02638_ Overheating: Core damaged (-130). Map ----- +----------------------------------------------------+ | # ### ################?#######?##??????????? | | #+### ### # ?####?##?#####??###??????????? | | + ############?#######?????????? | | % # "T" ##?#######?####?##???????????? | | """ ]!! #################?###?###?###????????? | | """ ]! ##################?###?####??????????? | | """ !! ########## ############?#????????? | | #?########?## ???????? | | ############# ??? ????? | | % ############# ??????? | | ######## ######### ############# ????? | | ######## ##=####### #############? ???????? | | ######## # # %%#####?##### #???????? | | ######## # #% %########## #???????? | | ######## # !!! + %##########?##??????? | | # [[[ # # !!/ #u %#########? ###?????? | | ## [[[ # # !!/ # %########## #??#????? | | ## [[ # # # = %%########### ####????? | | ## # # # % ############## #?#??#??? | | ## # # # % ############## #####???? | | = ## # # # =s############## #?#?####? | | =[## # #####+#### ############## ####??##? | | ! ####+### ##### #### * ############## #####?##? | | % = [%= ###?##?## | | k % === ###?##### | | ^ ^ % @ ###?###?# | | ########## ^"""k """ #################?##### | | ###### "R k "" ####################### | | ###### """ "" ##################?#### | | ###### !% #####################?# | | ###### ![%*=[ ##### | | ###### [#### < ####? | | ###### [#### ##### | | ##############+#############################?# | | ########### #######################?#?# | | ########### T #######################??#? | | ############### ########################### | | ############### ####################?###?## | | #?############# ########################??# | | #?########?#### """ ######################??#?# | | ?##??????###### """ #################?####??### | | ???###??##??#?# """ #################?###??##?# | | ????????#?##### ################?#?##??#??# | | ??????#?????###################?######?####?###?#? | | ??????#?#?#?########?############?############???? | | ???????#?#???#######?#?########?##########??#????? | | ??????????????###?####??###??##?????#??#####?????? | | | | | | | +----------------------------------------------------+ Best States ------------- Heat Dissipation 25 Energy Generation 23 Energy Capacity 310 Matter Stores 300 Matter Capacity 300 Sight Range 20 Robot Scan Range 14 Terrain Scan Range 16 Terrain Scan Density 460 Evasion (%) 40 Recoil Reduction 2 Offensive Hacking 10 Defensive Hacking 10 Item Schematics ----------------- None Robot Schematics ------------------ None Fabricated ------------ Nothing Alien Tech Used ----------------- None Achievements -------------- None Challenges ------------ None RPGLIKE | -11 -10 -9 --------- Run | Scr Mat Mat Levels Raised 4 | . 1 3 XP Earned 9604 | 3000 1675 4929 XP Spent 8970 | 3000 1495 4475 Upgrades 27 | 10 9 8 Power Slot 1 | 1 . . Propulsion Slot 1 | 1 . . Utility Slot 3 | 1 . 2 Weapon Slot 1 | 1 . . Core Integrity 1 | 1 . . Inventory Capacity 2 | 2 . . Sight Range 4 | 1 2 1 Sensor Range 7 | 2 3 2 Terrain Scan Density 4 | . 4 . Ranged Accuracy 3 | . . 3 Protomatter Created 350 | . 49 301 Integrity Restored 951 | . 147 804 Core 951 | . 147 804 Protomatter Decayed 12 | . . 12 Game ------ Seed GuidedArcModule Manual? 0 Play Time 00:26:35 Cumulative 69.1 hours Start 2019.12.18 @ 21:21:56 End 2019.12.18 @ 21:47:28 Sessions 1 Manual Loads 0 Difficulty Rogue Special Mode Winter2019/RPGLIKE Game No. 113 Rogue 113 Adventurer 0 Explorer 0 Win Type - Total 0 Types 0/0/0/0/0/0/0 Lore% 22 Gallery% 26 Achievement% 26 Wizard Run 0 Options --------- ASCII 0 Keyboard 0 Movement Mouse Keybinds 0 Fullscreen 1 Font 18/SmallcapsGlow Map View 76x50 Tactical HUD 1 Map Filters NONE Filters LOW_CONTRAST(13,24,33)|BRIGHTNESS(120)|SATURATION(80) Steam 1 RUN: 82022e40-54bd-4d74-bb8c-bff2d58c28f3